bitfinex-derivatives/quotes_SOLF0:USTF0_20251101
["timestamp","ask_amount","ask_price","bid_price","bid_amount"]
[1761975559884,13.75243065,186.93,186.9,10.02159149]
[1761975560181,4.53995942,186.92,186.9,10.02159149]
[1761975560371,4.8171,186.93,186.9,10.02159149]
[1761975560372,4.53995942,186.91,186.9,10.02159149]
[1761975560570,4.53995942,186.91,186.9,85.48159149]
[1761975560972,4.53995942,186.91,186.9,75.46]
[1761975561172,4.53995942,186.91,186.89,2.83913246]
[1761975561367,4.8166,186.95,186.9,77.25380585]
[1761975561583,8.97235813,186.94,186.91,80.30534844]
[1761975561874,4.57513978,186.93,186.91,80.30534844]
[1761975562081,4.57513978,186.92,186.91,6.66534844]
[1761975562379,4.57513978,186.92,186.91,46.36534844]
[1761975562580,4.57513978,186.92,186.91,48.17915429]
[1761975562883,4.57513978,186.92,186.91,8.47915429]
[1761975563179,4.57513978,186.92,186.91,77.27380585]
[1761975564278,4.57513978,186.92,186.91,75.46]
[1761975564472,4.57513978,186.92,186.91,83.93896632]
[1761975564776,4.57513978,186.92,186.91,6.66516047]
[1761975564982,7.36513978,186.92,186.91,6.66516047]
[1761975565682,7.36513978,186.92,186.9,45.77896632]
[1761975565881,4.57513978,186.91,186.9,45.77896632]
[1761975566181,4.57513978,186.91,186.9,39.11380585]
[1761975566882,4.57513978,186.91,186.9,1.81380585]
[1761975568979,7.36513978,186.91,186.9,6.67102102]
[1761975569179,4.8178,186.9,186.89,6.67102102]
[1761975569386,16.58220508,186.9,186.89,6.67102102]
[1761975570878,16.58220508,186.9,186.89,10.02159149]
[1761975572987,13.79220508,186.9,186.89,10.02159149]
[1761975574892,16.58220508,186.9,186.89,10.02159149]
[1761975577589,13.79220508,186.9,186.88,10.02159149]
[1761975577894,11.76440508,186.89,186.88,6.67878248]
[1761975584698,11.76440508,186.89,186.88,10.80437036]
[1761975587308,11.76440508,186.89,186.88,4.12558788]
[1761975588906,11.76440508,186.89,186.88,9.12732729]
[1761975594415,11.76440508,186.89,186.88,4.12558788]
[1761975602033,2.84,186.88,186.83,6.67878248]
[1761975602225,2.84,186.86,186.82,6.67878248]
[1761975602425,1.81380585,186.9,186.81,1.81380585]
[1761975602426,2.84,186.84,186.81,8.49258833]
[1761975602626,11.81440508,186.83,186.81,8.49258833]
[1761975602835,4.57513978,186.82,186.81,8.49258833]
[1761975605930,4.57513978,186.82,186.81,1.81380585]
[1761975609340,4.57513978,186.82,186.81,8.49258833]
[1761975610036,4.57513978,186.82,186.8,9.54878248]
[1761975610037,11.76936273,186.82,186.8,9.54878248]
[1761975610237,4.57513978,186.81,186.8,9.54878248]
[1761975610438,7.41513978,186.81,186.8,6.67878248]
[1761975611234,2.84,186.8,186.77,12.29367955]
[1761975611539,11.76873916,186.79,186.77,10.4798737]
[1761975611843,1.81380585,186.83,186.77,10.4798737]
[1761975611844,2.84,186.85,186.79,2.87]
[1761975612032,2.84,186.83,186.79,2.87]
[1761975612233,11.7766577,186.82,186.79,2.87]
[1761975612434,11.7766577,186.81,186.79,2.87]
[1761975612643,4.58348155,186.8,186.79,2.87]
[1761975613335,8.98621635,186.8,186.79,2.87]
[1761975614342,4.58348155,186.8,186.79,2.87]
[1761975620348,8.98587883,186.8,186.79,2.87]
[1761975621746,11.71587883,186.8,186.78,6.67878248]
[1761975622041,4.58348155,186.79,186.78,6.67878248]
[1761975622348,4.58348155,186.79,186.78,9.56878248]
[1761975627151,3.09485587,186.79,186.78,9.56878248]
[1761975629649,3.09485587,186.79,186.78,2.89]
[1761975630047,2.73,186.82,186.78,2.89]
[1761975630348,7.13563274,186.81,186.8,6.66227899]
[1761975632450,7.13563274,186.81,186.79,9.55227899]
[1761975632750,4.40563274,186.8,186.79,9.55227899]
[1761975635448,4.40563274,186.8,186.79,2.89]
[1761975636150,2.73,186.84,186.8,2.89]
[1761975636348,4.40927535,186.83,186.81,9.55687553]
[1761975636546,4.40927535,186.82,186.81,9.55687553]
[1761975639457,8.92374625,186.82,186.81,9.55687553]
[1761975641359,11.65374625,186.82,186.79,10.02159149]
[1761975641558,8.92374625,186.81,186.8,2.89]
[1761975642457,8.92374625,186.81,186.8,12.91159149]
[1761975642860,8.92374625,186.81,186.8,2.89]
[1761975643260,8.92374625,186.81,186.8,12.91159149]
[1761975648368,8.92374625,186.81,186.8,2.89]
[1761975648564,8.92374625,186.81,186.8,12.91429105]
[1761975653971,8.93375461,186.81,186.8,12.91429105]
[1761975657072,8.93375461,186.81,186.8,2.89]
[1761975661381,11.82375461,186.81,186.8,2.89]
[1761975663284,8.93375461,186.81,186.8,2.89]
[1761975666191,11.82375461,186.81,186.8,2.89]
[1761975670992,11.82375461,186.81,186.78,75.46]
[1761975671197,8.93375461,186.8,186.79,2.71]
[1761975673901,2.89,186.79,186.77,14.25352338]
[1761975674204,11.82375461,186.78,186.77,76.39109122]
[1761975675200,11.82375461,186.78,186.77,79.10109122]
[1761975675901,11.82375461,186.78,186.77,76.39109122]
[1761975677202,8.93375461,186.78,186.77,79.29109122]
[1761975681205,4.5144709,186.78,186.77,79.29109122]
[1761975687505,3.11642918,186.78,186.77,79.29109122]
[1761975688306,2.86,186.84,186.78,2.84]
[1761975688511,7.27817259,186.83,186.81,11.84553994]
[1761975688808,7.27817259,186.82,186.81,11.84553994]
[1761975689001,7.27817259,186.82,186.81,87.30553994]
[1761975691502,7.27817259,186.82,186.81,90.14553994]
[1761975692104,4.41817259,186.82,186.81,90.14553994]
[1761975692505,4.41817259,186.82,186.81,80.11675918]
[1761975699716,8.85782596,186.82,186.81,80.11675918]
[1761975704021,8.85782596,186.82,186.81,78.3]
[1761975704222,11.71782596,186.82,186.81,75.46]
[1761975704422,11.71782596,186.82,186.81,85.47960833]
[1761975704627,1.81675918,186.9,186.81,89.60114334]
[1761975704822,1.81675918,186.9,186.85,5.01003953]
[1761975704823,8.8447362,186.89,186.85,5.01003953]
[1761975705116,1.81675918,186.9,186.86,4.12153501]
[1761975705415,1.81675918,186.9,186.87,4.12153501]
[1761975705611,1.81675918,186.9,186.85,5.01003953]
[1761975706218,2.89675918,186.9,186.85,5.01003953]
[1761975706623,2.91,186.89,186.85,5.01003953]
[1761975708919,2.91,186.89,186.85,5.01016574]
[1761975710421,2.91,186.89,186.86,5.01016574]
[1761975716631,2.91,186.87,186.86,5.01016574]
[1761975716931,11.54097678,186.87,186.86,5.01016574]
[1761975721537,11.54097678,186.87,186.83,6.68005271]
[1761975721538,2.91,186.86,186.85,5.01016574]
[1761975721731,11.54097678,186.86,186.85,5.01016574]
[1761975722828,11.54172371,186.86,186.85,5.01016574]
[1761975724429,2.91,186.85,186.83,6.68005271]
[1761975724630,11.54172371,186.84,186.83,6.68005271]
[1761975725030,11.54172371,186.84,186.83,2.66]
[1761975725735,8.63172371,186.84,186.83,2.66]
[1761975726437,8.63172371,186.84,186.83,12.67960833]
[1761975728530,8.63172371,186.84,186.83,2.66]
[1761975729429,11.54172371,186.84,186.82,10.01960833]
[1761975729630,8.63172371,186.83,186.82,12.67960833]
[1761975732641,8.63172371,186.83,186.82,12.67960833]
[1761975736545,8.63172371,186.83,186.82,2.66]
[1761975738338,8.63586715,186.83,186.82,2.66]
[1761975740047,4.3150195,186.83,186.82,2.66]
[1761975740844,2.71,186.87,186.82,2.66]
[1761975741038,8.58712546,186.86,186.85,12.97484604]
[1761975741237,11.34712546,186.86,186.85,12.97484604]
[1761975741844,8.58712546,186.86,186.85,12.97484604]
[1761975742241,8.58712546,186.86,186.85,2.95]
[1761975742445,11.34712546,186.86,186.84,12.97484604]
[1761975742646,8.58712546,186.85,186.84,12.97484604]
[1761975746752,8.58712546,186.85,186.83,10.02484604]
[1761975746753,2.76,186.84,186.83,10.02484604]
[1761975747054,8.58712546,186.84,186.83,12.97484604]
[1761975748356,11.34712546,186.84,186.83,10.02484604]
[1761975748755,8.58712546,186.84,186.83,12.97484604]
[1761975749254,11.34712546,186.84,186.83,10.02484604]
[1761975749457,2.76,186.83,186.82,10.02484604]
[1761975749653,11.34712546,186.83,186.82,10.02484604]
[1761975752358,2.76,186.82,186.81,6.68257567]
[1761975752556,11.34712546,186.82,186.81,6.68257567]
[1761975756354,2.76,186.81,186.8,6.68257567]
[1761975756554,11.34712546,186.81,186.8,6.68257567]
[1761975759063,2.76,186.8,186.79,6.68257567]
[1761975759265,11.34712546,186.8,186.79,6.68257567]
[1761975759467,2.76,186.79,186.78,6.68257567]
[1761975759662,11.34712546,186.79,186.78,6.68257567]
[1761975760056,8.58712546,186.79,186.78,9.63257567]
[1761975760262,8.58712546,186.79,186.78,2.95]
[1761975761463,4.28004253,186.79,186.78,2.95]
[1761975761961,4.28004253,186.81,186.78,2.95]
[1761975762158,8.57797756,186.8,186.78,2.95]
[1761975762464,4.28004253,186.79,186.78,2.95]
[1761975762668,4.28004253,186.81,186.78,2.95]
[1761975762867,8.57920444,186.8,186.78,2.95]
[1761975763067,4.28004253,186.79,186.78,2.95]
[1761975763267,4.28004253,186.81,186.78,2.95]
[1761975763567,8.57874891,186.8,186.78,2.95]
[1761975763758,4.28004253,186.79,186.78,2.95]
[1761975763959,7.04004253,186.81,186.78,2.95]
[1761975764160,8.57864134,186.8,186.78,2.95]
[1761975764360,4.28004253,186.79,186.78,2.95]
[1761975765767,4.28004253,186.8,186.78,2.95]
[1761975765960,4.28004253,186.79,186.78,2.95]
[1761975766156,4.28004253,186.8,186.78,2.95]
[1761975766357,2.76,186.81,186.78,2.95]
[1761975766358,4.28004253,186.79,186.78,2.95]
[1761975766561,4.28004253,186.8,186.78,2.95]
[1761975766764,4.28004253,186.79,186.78,2.95]
[1761975767270,4.28004253,186.8,186.78,2.95]
[1761975767469,4.28004253,186.79,186.78,2.95]
[1761975767662,4.28004253,186.8,186.78,2.95]
[1761975767858,4.28004253,186.79,186.78,2.95]
[1761975768766,4.28004253,186.8,186.78,2.95]
[1761975768960,4.28004253,186.79,186.78,2.95]
[1761975769160,4.28004253,186.8,186.78,2.95]
[1761975769365,2.76,186.81,186.79,9.38933641]
[1761975769564,8.56881476,186.8,186.79,9.38933641]
[1761975770071,11.39881476,186.8,186.79,6.66933641]
[1761975770575,8.56881476,186.8,186.79,9.38933641]
[1761975780679,11.39881476,186.8,186.79,9.38933641]
[1761975782278,11.39881476,186.8,186.79,6.66933641]
[1761975783983,8.56881476,186.8,186.79,9.38933641]
[1761975785282,8.56881476,186.8,186.79,2.72]
[1761975786479,4.2715444,186.8,186.79,12.74484604]
[1761975786678,4.2715444,186.8,186.79,2.72]
[1761975786880,7.1015444,186.82,186.79,12.74484604]
[1761975787075,8.57054632,186.81,186.79,12.74484604]
[1761975787275,4.2715444,186.8,186.79,12.74484604]
[1761975788575,7.1015444,186.8,186.79,12.74484604]
[1761975788773,11.40230833,186.8,186.79,12.74484604]
[1761975791186,11.40230833,186.8,186.79,10.02484604]
[1761975791382,11.40230833,186.8,186.78,12.74484604]
[1761975791575,8.57230833,186.79,186.78,2.72]
[1761975799692,4.2715444,186.79,186.78,3.8]
[1761975799890,2.82,186.89,186.79,2.9]
[1761975800090,2.82,186.87,186.85,6.68827315]
[1761975800394,11.38716909,186.86,186.85,6.68827315]
[1761975807208,11.38716909,186.86,186.84,6.68827315]
[1761975807500,8.56716909,186.85,186.83,12.93240973]
[1761975807801,8.56716909,186.84,186.83,12.93240973]
[1761975808192,8.56716909,186.84,186.83,2.9]
[1761975808902,8.56716909,186.84,186.83,12.93240973]
[1761975811804,11.38716909,186.84,186.83,10.03240973]
[1761975812001,2.82,186.83,186.82,6.67698221]
[1761975812303,2.82,186.82,186.81,5.28554897]
[1761975812493,11.38716909,186.82,186.81,5.28554897]
[1761975812894,11.38716909,186.82,186.78,10.03240973]
[1761975812895,2.82,186.81,186.78,10.03240973]
[1761975813095,2.82,186.79,186.78,10.03240973]
[1761975813395,11.38716909,186.79,186.78,10.03240973]
[1761975814099,11.70379204,186.79,186.78,10.03240973]
[1761975814802,8.88379204,186.79,186.78,12.93240973]
[1761975815002,4.61944384,186.79,186.78,12.93240973]
[1761975821209,7.43944384,186.79,186.78,12.93240973]
[1761975821407,11.69154476,186.79,186.78,10.03240973]
[1761975824127,7.43944384,186.79,186.78,10.03240973]
[1761975824415,11.68008986,186.79,186.78,10.03240973]
[1761975824719,1.8161115,186.84,186.78,14.15031407]
[1761975824910,1.8161115,186.84,186.83,5.00831646]
[1761975825109,1.8161115,186.84,186.82,5.00831646]
[1761975826721,2.01,186.83,186.82,5.00831646]
[1761975835124,2.01,186.83,186.81,5.00831646]
[1761975835527,2.01,186.83,186.8,5.00831646]
[1761975836727,2.01,186.81,186.8,5.00831646]
[1761975837026,10.76296465,186.81,186.8,5.00831646]
[1761975841023,12.57907615,186.81,186.8,5.00831646]
[1761975841222,2.01,186.8,186.79,5.00831646]
[1761975841421,10.76296465,186.8,186.79,5.00831646]
[1761975843126,10.76296465,186.8,186.77,6.67334956]
[1761975843338,10.75790777,186.79,186.77,9.53334956]
[1761975843523,4.59705324,186.78,186.77,6.67334956]
[1761975844133,4.59705324,186.78,186.77,9.53334956]
[1761975848138,8.74812992,186.78,186.77,9.53334956]
[1761975849036,4.59705324,186.78,186.77,9.53334956]
[1761975849632,4.59705324,186.78,186.77,2.86]
[1761975850231,4.59767616,186.78,186.77,2.86]
[1761975852740,4.59767616,186.78,186.77,12.89240973]
[1761975856334,4.59767616,186.78,186.77,2.86]
[1761975885563,2.02,186.8,186.77,2.86]
[1761975885767,6.56242439,186.79,186.77,2.86]
[1761975885959,4.54242439,186.78,186.77,2.86]
[1761975895878,6.57242439,186.78,186.75,2.82]
[1761975896170,4.54242439,186.77,186.75,2.82]
[1761975896371,4.54242439,186.76,186.75,2.82]
[1761975897173,4.54242439,186.76,186.75,16.14243216]
[1761975900582,9.12430087,186.76,186.75,16.14243216]
[1761975902382,9.12430087,186.76,186.75,2.82]
[1761975902582,9.12430087,186.76,186.75,16.14243216]
[1761975904480,9.12430087,186.76,186.75,91.52243216]
[1761975905480,9.12430087,186.76,186.75,78.2]
[1761975909691,9.12430087,186.76,186.75,2.82]
[1761975910377,9.12430087,186.76,186.75,78.2]
[1761975910693,9.12430087,186.76,186.75,2.82]
[1761975911488,9.12430087,186.76,186.75,78.2]
[1761975911885,9.12430087,186.76,186.75,2.82]
[1761975912089,9.12430087,186.76,186.75,78.2]
[1761975912584,9.12430087,186.76,186.75,2.82]
[1761975912894,9.12430087,186.76,186.75,78.2]
[1761975920791,11.13430087,186.76,186.75,75.38]
[1761975921495,11.13430087,186.76,186.75,78.2]
[1761975924698,9.12430087,186.76,186.75,78.2]
[1761975928702,9.12774337,186.76,186.75,78.2]
[1761975929002,8.51032486,186.76,186.75,78.2]
[1761975929195,8.51032486,186.76,186.75,80.01724365]
[1761975930400,4.54586689,186.76,186.75,80.01724365]
[1761975935401,4.54586689,186.76,186.75,2.82]
[1761975935603,4.54586689,186.76,186.75,66.08]
[1761975941007,9.13386047,186.76,186.75,66.08]
[1761975944606,9.13509522,186.76,186.75,66.08]
[1761975946894,11.15509522,186.76,186.75,66.08]
[1761975951006,11.15509522,186.76,186.75,63.26]
[1761975951312,11.15509522,186.76,186.75,66.17]
[1761975956410,11.15509522,186.76,186.75,63.26]
[1761975957815,11.15509522,186.76,186.75,66.17]
[1761975958016,9.13509522,186.76,186.75,66.17]
[1761975962024,11.15509522,186.76,186.72,15.13967581]
[1761975962318,11.15509522,186.75,186.73,78.27]
[1761975962521,9.13509522,186.74,186.73,78.27]
[1761975963823,11.15509522,186.74,186.73,78.27]
[1761975969823,9.13509522,186.74,186.73,78.27]
[1761975994140,9.12075399,186.74,186.73,78.27]
[1761975999742,8.96429636,186.74,186.73,78.27]
[1761976004951,8.96429636,186.74,186.73,81.10980169]
[1761976005146,2.02,186.77,186.73,85.23379348]
[1761976005351,8.97240257,186.76,186.75,2.77]
[1761976005658,8.97240257,186.76,186.75,82.25399179]
[1761976006159,8.97240257,186.76,186.75,78.13]
[1761976008563,11.82,186.9,186.76,2.95]
[1761976008763,11.82,186.9,186.82,5.01977565]
[1761976009156,11.82,186.9,186.8,6.6930342]
[1761976009356,12.9,186.9,186.82,5.01974783]
[1761976009756,11.82,186.9,186.82,5.01974783]
[1761976010253,677.00755591,186.92,186.84,5.01974783]
[1761976010457,752.34755591,186.92,186.84,5.01974783]
[1761976011258,752.34755591,186.92,186.84,2.34149705]
[1761976018268,752.34755591,186.92,186.81,6.6930342]
[1761976018473,752.34755591,186.92,186.81,9.6430342]
[1761976020564,8.75967178,186.91,186.81,9.6430342]
[1761976020773,8.75967178,186.9,186.81,9.6430342]
[1761976020972,8.75967178,186.89,186.81,9.6430342]
[1761976021176,8.75967178,186.88,186.81,9.6430342]
[1761976021377,8.75967178,186.87,186.81,9.6430342]
[1761976021569,8.75967178,186.86,186.81,9.6430342]
[1761976021770,8.75967178,186.85,186.81,9.6430342]
[1761976022071,8.75967178,186.84,186.81,9.6430342]
[1761976022373,8.75848993,186.83,186.81,6.6930342]
[1761976022677,8.75848993,186.82,186.8,6.6930342]
[1761976022877,8.75848993,186.81,186.8,6.6930342]
[1761976023369,8.75848993,186.81,186.79,9.6430342]
[1761976023572,8.75848993,186.8,186.79,6.6930342]
[1761976023874,8.75848993,186.8,186.77,6.6930342]
[1761976024174,8.75848993,186.79,186.77,6.6930342]
[1761976024370,8.75848993,186.78,186.77,6.6930342]
[1761976024570,8.75848993,186.78,186.76,6.6930342]
[1761976024770,8.75848993,186.77,186.76,6.6930342]
[1761976026282,8.75848993,186.77,186.76,9.6430342]
[1761976026473,8.75848993,186.77,186.76,2.95]
[1761976034792,8.75848993,186.77,186.76,9.6291513]
[1761976035387,8.75848993,186.77,186.76,6.6791513]
[1761976038997,8.75848993,186.77,186.76,9.3691513]
[1761976045296,4.38962284,186.77,186.76,9.3691513]
[1761976045490,8.75724334,186.77,186.76,9.3691513]
[1761976051398,8.75724334,186.77,186.76,6.6791513]
[1761976053203,8.75724334,186.77,186.75,9.5291513]
[1761976053501,8.75724334,186.76,186.75,9.5291513]
[1761976055501,8.75724334,186.76,186.75,6.6791513]
[1761976057407,8.75724334,186.76,186.75,9.5291513]
[1761976059208,8.75724334,186.76,186.75,6.6791513]
[1761976060108,8.75724334,186.76,186.75,9.5291513]
[1761976060511,8.74916018,186.76,186.75,9.5291513]
[1761976061913,8.74916018,186.76,186.74,6.6791513]
[1761976062209,8.74916018,186.75,186.74,6.6791513]
[1761976063202,8.74916018,186.75,186.73,6.6791513]
[1761976063511,8.74916018,186.74,186.73,6.6791513]
[1761976064105,8.74916018,186.74,186.73,9.5291513]
[1761976064509,8.74916018,186.74,186.73,2.85]
[1761976065617,8.75762223,186.74,186.73,2.85]
[1761976077612,8.75762223,186.74,186.71,14.73717112]
[1761976077814,8.75762223,186.73,186.71,14.73717112]
[1761976078108,8.75762223,186.72,186.71,14.73717112]
[1761976078415,8.75762223,186.72,186.71,12.9195513]
[1761976078617,8.75762223,186.72,186.7,10.0395513]
[1761976078921,8.75762223,186.71,186.69,12.9195513]
[1761976079112,1.81761982,186.78,186.69,12.9195513]
[1761976079113,8.75762223,186.7,186.69,12.9195513]
[1761976080317,8.75762223,186.7,186.66,3.81217615]
[1761976080628,8.75762223,186.69,186.67,2.88]
[1761976080922,8.75762223,186.68,186.67,2.88]
[1761976083328,4.37608255,186.68,186.67,2.88]
[1761976084231,4.37608255,186.68,186.66,5.62979597]
[1761976084529,1.81761982,186.76,186.66,3.81217615]
[1761976084730,8.75112145,186.75,186.72,5.00948367]
[1761976084923,8.75112145,186.74,186.72,3.53003954]
[1761976085124,8.75112145,186.73,186.72,3.53003954]
[1761976085319,8.75112145,186.73,186.69,6.67931156]
[1761976085526,8.75112145,186.72,186.69,6.67931156]
[1761976085724,8.75112145,186.71,186.69,6.67931156]
[1761976085923,8.75112145,186.7,186.69,6.67931156]
[1761976087222,8.75112145,186.7,186.68,6.67931156]
[1761976087525,8.75112145,186.69,186.68,6.67931156]
[1761976087726,8.75112145,186.69,186.67,6.67931156]
[1761976088032,8.75112145,186.68,186.67,6.67931156]
[1761976089434,8.75112145,186.68,186.63,0.9323135]
[1761976089435,8.75112145,186.68,186.66,6.67931156]
[1761976089632,8.75112145,186.67,186.66,6.67931156]
[1761976089825,8.74308013,186.67,186.66,6.67931156]
[1761976090630,8.74308013,186.67,186.64,2.88]
[1761976090825,4.36339661,186.66,186.64,2.88]
[1761976091129,1.81761982,186.73,186.64,2.88]
[1761976091433,8.73978783,186.72,186.64,2.88]
[1761976091628,8.73978783,186.71,186.65,6.67186967]
[1761976091929,8.73978783,186.7,186.65,9.55186967]
[1761976092131,8.73978783,186.69,186.65,9.55186967]
[1761976092331,8.73978783,186.68,186.65,9.55186967]
[1761976092533,8.73978783,186.67,186.65,9.55186967]
[1761976092737,4.36183149,186.66,186.65,9.55186967]
[1761976093329,4.36183149,186.72,186.65,9.55186967]
[1761976093634,8.73797217,186.71,186.65,9.55186967]
[1761976093835,8.73797217,186.7,186.65,9.55186967]
[1761976094036,8.73797217,186.69,186.65,9.55186967]
[1761976094237,8.73797217,186.68,186.65,9.55186967]
[1761976094437,8.73797217,186.67,186.65,9.55186967]
[1761976094632,4.36183149,186.66,186.65,9.55186967]
[1761976095029,4.36183149,186.72,186.65,9.55186967]
[1761976095233,8.73757336,186.71,186.65,2.88]
[1761976095435,8.73757336,186.7,186.65,2.88]
[1761976095632,8.73757336,186.69,186.65,2.88]
[1761976095832,8.73757336,186.68,186.65,2.88]
[1761976096039,8.73757336,186.67,186.65,2.88]
[1761976096240,4.36183149,186.66,186.65,2.88]
[1761976096432,4.36183149,186.71,186.65,2.88]
[1761976096633,8.73632935,186.7,186.65,2.88]
[1761976096940,8.73632935,186.69,186.65,2.88]
[1761976097131,8.73632935,186.68,186.65,2.88]
[1761976097336,8.73632935,186.67,186.65,2.88]
[1761976097534,4.36183149,186.66,186.65,2.88]
[1761976097738,4.36183149,186.71,186.65,2.88]
[1761976097938,8.73611851,186.7,186.65,2.88]
[1761976098232,8.73611851,186.69,186.65,2.88]
[1761976098431,8.73611851,186.68,186.65,2.88]
[1761976098642,8.73611851,186.67,186.65,2.88]
[1761976098945,4.36183149,186.66,186.65,2.88]
[1761976099236,4.36183149,186.71,186.65,2.88]
[1761976099442,8.73567155,186.7,186.65,2.88]
[1761976099634,8.73567155,186.69,186.65,2.88]
[1761976099943,8.73567155,186.68,186.65,2.88]
[1761976100239,8.73567155,186.67,186.65,2.88]
[1761976100444,1.81761982,186.72,186.65,2.88]
[1761976100645,8.73143198,186.71,186.65,2.88]
[1761976100843,8.73143198,186.7,186.65,2.88]
[1761976101036,8.73143198,186.69,186.65,2.88]
[1761976101238,8.73143198,186.68,186.65,2.88]
[1761976101438,8.73143198,186.67,186.65,2.88]
[1761976101739,1.81761982,186.72,186.65,2.88]
[1761976101938,8.68115515,186.71,186.65,2.88]
[1761976102232,8.68115515,186.7,186.65,2.88]
[1761976102435,8.68115515,186.69,186.65,2.88]
[1761976102637,8.68115515,186.68,186.65,2.88]
[1761976102842,8.68115515,186.67,186.65,2.88]
[1761976103045,4.30747924,186.66,186.65,2.88]
[1761976103235,4.37427828,186.66,186.65,2.88]
[1761976103641,8.68175752,186.66,186.65,2.88]
[1761976105342,1.81761982,186.72,186.65,2.88]
[1761976105546,4.37449392,186.71,186.65,2.88]
[1761976105846,4.37449392,186.7,186.65,2.88]
[1761976106148,4.37449392,186.69,186.65,2.88]
[1761976106346,4.37449392,186.68,186.65,2.88]
[1761976106543,4.37449392,186.67,186.65,2.88]
[1761976106845,16.3355642,186.79,186.65,2.88]
[1761976107045,1.81761982,186.73,186.66,2.65]
[1761976107245,4.37538868,186.72,186.66,2.65]
[1761976107544,4.37538868,186.71,186.66,2.65]
[1761976107746,4.37538868,186.7,186.66,2.65]
[1761976107945,4.37538868,186.69,186.66,2.65]
[1761976108146,4.37538868,186.68,186.66,2.65]
[1761976108334,1.81761982,186.73,186.66,2.65]
[1761976108541,1.81761982,186.7,186.63,10.25418317]
[1761976108744,4.37542432,186.69,186.63,10.25418317]
[1761976108940,1.81761982,186.7,186.62,6.67186967]
[1761976108941,4.37542432,186.68,186.62,6.67186967]
[1761976109149,4.37542432,186.67,186.63,2.65]
[1761976109441,4.37542432,186.66,186.61,12.34198681]
[1761976109749,4.37542432,186.65,186.61,12.34198681]
[1761976110047,4.37542432,186.64,186.61,12.34198681]
[1761976110235,4.37542432,186.63,186.62,2.65]
[1761976113249,4.37542432,186.63,186.61,12.34198681]
[1761976113450,4.37542432,186.62,186.61,12.34198681]
[1761976113649,4.37542432,186.68,186.61,12.34198681]
[1761976113851,4.37542432,186.67,186.61,12.34198681]
[1761976114150,4.37542432,186.66,186.61,12.34198681]
[1761976114344,4.37542432,186.65,186.61,12.34198681]
[1761976114542,4.37542432,186.64,186.61,12.34198681]
[1761976114745,4.37542432,186.63,186.61,12.34198681]
[1761976114946,4.37542432,186.62,186.61,12.34198681]
[1761976115252,4.37542432,186.68,186.61,12.34198681]
[1761976115453,4.37542432,186.67,186.61,12.34198681]
[1761976115654,4.37542432,186.66,186.61,12.34198681]
[1761976115850,4.37542432,186.65,186.61,12.34198681]
[1761976116048,4.37542432,186.64,186.61,12.34198681]
[1761976116351,4.37542432,186.63,186.61,12.34198681]
[1761976116652,2.84485329,186.69,186.61,12.34198681]
[1761976116854,4.36652746,186.68,186.61,12.34198681]
[1761976117152,4.36652746,186.67,186.61,12.34198681]
[1761976117352,4.36652746,186.66,186.61,12.34198681]
[1761976117547,8.61075977,186.65,186.61,12.34198681]
[1761976117748,8.61075977,186.64,186.61,12.34198681]
[1761976117949,8.61075977,186.63,186.62,2.65]
[1761976118147,2.84485329,186.69,186.62,2.65]
[1761976118348,8.611883,186.68,186.62,2.65]
[1761976118551,8.611883,186.67,186.62,2.65]
[1761976118751,8.611883,186.66,186.62,2.65]
[1761976118955,8.611883,186.65,186.62,2.65]
[1761976119159,8.611883,186.64,186.62,2.65]
[1761976119456,2.84485329,186.74,186.62,2.65]
[1761976119753,8.61236695,186.73,186.62,2.65]
[1761976119955,8.61236695,186.72,186.62,2.65]
[1761976120155,8.61236695,186.71,186.62,2.65]
[1761976120355,8.61236695,186.7,186.62,2.65]
[1761976120543,8.61236695,186.69,186.62,2.65]
[1761976120747,8.61236695,186.68,186.62,2.65]
[1761976120955,8.61236695,186.67,186.62,2.65]
[1761976121253,8.61236695,186.66,186.62,2.65]
[1761976121453,8.61236695,186.65,186.62,2.65]
[1761976121654,8.61236695,186.64,186.62,2.65]
[1761976121850,2.84485329,186.71,186.61,9.69198681]
[1761976122049,2.84485329,186.68,186.61,9.69198681]
[1761976122251,8.61548738,186.67,186.61,9.69198681]
[1761976122444,8.61548738,186.66,186.61,9.69198681]
[1761976122656,8.61548738,186.65,186.61,9.69198681]
[1761976122857,8.61548738,186.64,186.61,9.69198681]
[1761976123057,8.61548738,186.63,186.61,9.69198681]